bitfinex/quotes_SOLUSD_20260202
["timestamp","ask_amount","ask_price","bid_price","bid_amount"]
[1769995512879,3.54127595,102.58,102.54,24.44445276]
[1769995513088,3.54127595,102.58,102.55,14.69220608]
[1769995513390,14.69220608,102.6,102.57,14.69220608]
[1769995513391,3.54127595,102.6,102.57,14.69220608]
[1769995513690,3.54127595,102.6,102.56,14.69220608]
[1769995513894,4.47527085,102.63,102.59,14.69220608]
[1769995513895,9.94397973,102.63,102.59,14.69220608]
[1769995514091,3.74127595,102.63,102.6,14.69220608]
[1769995514293,13.48504706,102.63,102.59,14.69220608]
[1769995514598,3.74127595,102.63,102.59,14.69220608]
[1769995514792,13.4853043,102.63,102.59,14.69220608]
[1769995514984,3.74127595,102.63,102.6,14.69220608]
[1769995515382,0.2,102.63,102.61,14.69220608]
[1769995515695,0.2,102.67,102.63,3.38146933]
[1769995515900,5.09462543,102.72,102.59,9.74728578]
[1769995515901,4.69274115,102.71,102.66,3.38146933]
[1769995516110,4.69274115,102.71,102.69,14.69220608]
[1769995516111,0.4174703,102.71,102.69,14.69220608]
[1769995516308,0.4174703,102.71,102.66,3.38146933]
[1769995516505,13.69495112,102.71,102.68,14.69220608]
[1769995516702,3.54127595,102.69,102.65,14.69220608]
[1769995517009,14.69220608,102.67,102.62,13.12545758]
[1769995517310,27.97066337,102.7,102.65,14.69220608]
[1769995517511,0.4174703,102.71,102.69,14.69220608]
[1769995517809,18.23348203,102.7,102.65,9.74168027]
[1769995517992,0.4174703,102.71,102.66,3.38146933]
[1769995518188,15.10967638,102.71,102.67,14.69220608]
[1769995518504,15.10967638,102.71,102.63,9.7436052]
[1769995518505,18.23348203,102.68,102.63,9.7436052]
[1769995518703,14.69220608,102.67,102.63,14.69220608]
[1769995518906,18.23348203,102.66,102.61,14.69220608]
[1769995519110,14.69220608,102.65,102.61,9.74537634]
[1769995519604,14.69220608,102.63,102.57,27.75398716]
[1769995519909,18.23348203,102.61,102.56,14.69220608]
[1769995520213,14.69220608,102.58,102.54,9.75205246]
[1769995520401,18.23348203,102.57,102.52,14.69220608]
[1769995520604,3.54127595,102.57,102.53,14.69220608]
[1769995520902,4.27527085,102.62,102.54,24.44417803]
[1769995520903,27.98122438,102.59,102.54,24.44417803]
[1769995521107,18.23348203,102.59,102.54,24.44417803]
[1769995521314,14.69220608,102.62,102.58,14.69220608]
[1769995521500,14.69220608,102.62,102.57,14.69220608]
[1769995521689,14.69220608,102.61,102.57,14.69220608]
[1769995521885,14.69220608,102.58,102.53,27.82632872]
[1769995522097,14.69220608,102.58,102.54,14.69220608]
[1769995522302,18.23348203,102.59,102.54,14.69220608]
[1769995522508,14.69220608,102.58,102.54,14.69220608]
[1769995522807,14.69220608,102.57,102.52,18.07367541]
[1769995523006,14.69220608,102.58,102.53,24.44539739]
[1769995523193,4.04127595,102.61,102.53,13.13466064]
[1769995523403,3.54127595,102.6,102.56,14.69220608]
[1769995523713,3.54127595,102.65,102.58,18.07367541]
[1769995524006,3.54127595,102.66,102.62,14.69220608]
[1769995524203,3.54127595,102.68,102.64,14.69220608]
[1769995524405,3.54127595,102.68,102.66,14.69220608]
[1769995524605,18.23348203,102.68,102.63,14.69220608]
[1769995524829,18.23348203,102.67,102.62,14.69220608]
[1769995524989,18.23348203,102.69,102.65,14.69220608]
[1769995525198,13.69517823,102.71,102.67,14.69220608]
[1769995525720,3.54127595,102.7,102.66,14.69220608]
[1769995525898,18.23348203,102.69,102.64,14.69220608]
[1769995526094,13.69517823,102.71,102.67,14.69220608]
[1769995526295,24.84610836,102.71,102.66,14.69220608]
[1769995526503,18.23348203,102.67,102.61,13.12676426]
[1769995526700,18.23348203,102.67,102.62,24.43683404]
[1769995526907,18.23348203,102.65,102.6,14.69220608]
[1769995527101,3.54127595,102.64,102.59,14.69220608]
[1769995527405,18.23348203,102.64,102.59,14.69220608]
[1769995527612,18.23348203,102.64,102.59,24.43940489]
[1769995527793,18.23348203,102.64,102.59,14.69220608]
[1769995528114,18.23348203,102.64,102.6,14.69220608]
[1769995528408,18.23348203,102.64,102.59,24.43965357]
[1769995528409,14.69220608,102.63,102.59,24.43965357]
[1769995528609,14.69220608,102.63,102.58,18.07367541]
[1769995529015,24.43639452,102.63,102.58,27.82177432]
[1769995529213,9.74418844,102.63,102.59,14.69220608]
[1769995529595,14.69220608,102.63,102.59,14.69220608]
[1769995529990,27.97664644,102.64,102.58,37.5007907]
[1769995530191,13.28410908,102.64,102.6,14.69220608]
[1769995530391,18.23348203,102.62,102.57,14.69220608]
[1769995530611,18.23348203,102.61,102.56,9.75006925]
[1769995530906,27.98102077,102.59,102.54,14.69220608]
[1769995531107,27.98102077,102.59,102.51,24.44681814]
[1769995531108,14.69220608,102.56,102.51,24.44681814]
[1769995531310,3.54127595,102.55,102.5,14.69220608]
[1769995531508,14.69220608,102.54,102.49,27.83031797]
[1769995531710,14.69220608,102.53,102.48,24.44983769]
[1769995531899,14.69220608,102.52,102.47,27.83242306]
[1769995532097,14.69220608,102.54,102.49,24.44903727]
[1769995532295,3.54127595,102.55,102.5,14.69220608]
[1769995532509,18.23348203,102.55,102.5,14.69220608]
[1769995533108,13.29268797,102.55,102.51,14.69220608]
[1769995533292,3.54127595,102.55,102.51,14.69220608]
[1769995533701,18.23348203,102.57,102.52,14.69220608]
[1769995533908,18.23348203,102.56,102.51,14.69220608]
[1769995534090,18.23348203,102.55,102.5,14.69220608]
[1769995534295,18.23348203,102.55,102.51,14.69220608]
[1769995534689,14.69220608,102.54,102.49,9.75683119]
[1769995534915,18.23348203,102.54,102.49,14.69220608]
[1769995535121,14.69220608,102.53,102.48,14.69220608]
[1769995535318,27.98654102,102.54,102.49,14.69220608]
[1769995535517,14.69220608,102.53,102.49,14.69220608]
[1769995535709,13.29433494,102.54,102.48,3.38146933]
[1769995535912,3.54127595,102.53,102.48,14.69220608]
[1769995536311,18.23348203,102.52,102.47,14.69220608]
[1769995536603,14.69220608,102.51,102.47,14.69220608]
[1769995536800,27.98542678,102.55,102.5,14.69220608]
[1769995536997,24.4430222,102.56,102.52,14.69220608]
[1769995537198,13.29209207,102.56,102.52,14.69220608]
[1769995537419,3.54127595,102.56,102.52,14.69220608]
[1769995537600,27.98400676,102.56,102.52,14.69220608]
[1769995537800,3.72288582,102.6,102.54,14.69220608]
[1769995538112,3.72288582,102.6,102.53,3.54501206]
[1769995538113,3.72288582,102.6,102.56,14.69220608]
[1769995538416,18.4150919,102.6,102.56,14.69220608]
[1769995538716,14.69220608,102.59,102.54,14.69220608]
[1769995538903,18.4150919,102.59,102.54,14.69220608]
[1769995539104,28.16324763,102.59,102.54,24.44422909]
[1769995539414,3.72288582,102.57,102.53,14.69220608]
[1769995539611,14.69220608,102.6,102.55,3.54475877]
[1769995539822,3.72288582,102.62,102.58,14.69220608]
[1769995540019,3.72288582,102.62,102.59,14.69220608]
[1769995540403,3.72288582,102.64,102.6,14.69220608]
[1769995540807,3.72288582,102.64,102.61,14.69220608]
[1769995541017,3.72288582,102.66,102.62,14.69220608]
[1769995541224,3.72288582,102.66,102.63,14.69220608]
[1769995541409,3.72288582,102.66,102.57,5.36086188]
[1769995541410,3.72288582,102.64,102.57,3.54463431]
[1769995541607,3.72288582,102.64,102.6,14.69220608]
[1769995541810,18.4150919,102.64,102.6,9.74649072]
[1769995542014,3.72288582,102.64,102.6,24.4386968]
[1769995542326,18.4150919,102.64,102.59,24.43942477]
[1769995542623,18.4150919,102.63,102.58,14.69220608]
[1769995543003,28.160255,102.62,102.58,14.69220608]
[1769995543204,28.160255,102.62,102.57,14.69220608]
[1769995543810,14.69220608,102.6,102.54,3.54426942]
[1769995544009,18.4150919,102.61,102.56,14.69220608]
[1769995544210,14.69220608,102.6,102.55,18.2364755]
[1769995544704,3.72288582,102.62,102.58,14.69220608]
[1769995545403,3.72288582,102.59,102.52,3.54415058]
[1769995545618,14.69220608,102.55,102.5,27.99211378]
[1769995545810,14.69220608,102.55,102.51,9.7546175]
[1769995546121,18.29934341,102.55,102.5,14.69220608]
[1769995546314,14.69220608,102.52,102.47,14.69220608]
[1769995546514,18.29934341,102.53,102.48,14.69220608]
[1769995546711,3.60713733,102.54,102.47,27.99444455]
[1769995546928,18.29934341,102.54,102.49,14.69220608]
[1769995547428,14.69220608,102.53,102.49,9.75704946]
[1769995547627,24.44553365,102.53,102.48,24.44994631]
[1769995547928,24.44553365,102.53,102.48,24.44965409]
[1769995548427,24.43599677,102.53,102.48,24.43988478]
[1769995548721,14.68243677,102.55,102.5,14.68243677]
[1769995548924,18.2895741,102.55,102.51,14.68243677]
[1769995549125,28.03850252,102.58,102.53,14.68243677]
[1769995549424,3.60713733,102.62,102.57,24.43118054]
[1769995549623,8.70011483,102.64,102.6,14.68243677]
[1769995549927,28.03273568,102.64,102.59,14.68243677]
[1769995550102,52.38971151,102.64,102.59,14.68243677]
[1769995550417,18.2895741,102.63,102.58,14.68243677]
[1769995550612,18.2895741,102.62,102.56,3.54346563]
[1769995550802,14.68243677,102.58,102.53,18.22579279]
[1769995551002,14.68243677,102.58,102.54,18.22579279]
[1769995551215,14.68243677,102.59,102.54,24.43437782]
[1769995551407,14.68243677,102.58,102.53,48.81692431]
[1769995551824,28.03800307,102.59,102.54,14.68243677]
[1769995552021,24.3634555,102.62,102.55,3.54324766]
[1769995552208,28.03279771,102.64,102.59,14.68243677]
[1769995552811,18.2895741,102.62,102.57,14.68243677]
[1769995553018,3.60713733,102.63,102.59,14.68243677]
[1769995553217,18.2895741,102.63,102.58,14.68243677]
[1769995553435,18.2895741,102.63,102.59,9.74688325]
[1769995553436,3.60713733,102.63,102.59,9.74688325]
[1769995553616,18.2895741,102.63,102.59,24.42932002]
[1769995553929,18.2895741,102.65,102.6,14.68243677]
[1769995554130,3.60713733,102.64,102.6,14.68243677]
[1769995554926,14.68243677,102.67,102.63,14.68243677]
[1769995555622,14.68243677,102.67,102.62,24.42712591]
[1769995556115,18.2895741,102.65,102.61,9.74552707]
[1769995556316,14.68243677,102.66,102.61,24.42796384]
[1769995556532,18.2895741,102.67,102.62,14.68243677]
[1769995556726,28.02901376,102.68,102.63,14.68243677]
[1769995557541,3.60713733,102.68,102.64,24.42455615]
[1769995557717,3.60713733,102.68,102.64,48.78153198]
[1769995557912,14.68243677,102.69,102.64,48.78153198]
[1769995558121,18.2895741,102.68,102.64,9.74211938]
[1769995558632,3.60713733,102.68,102.64,24.42455615]
[1769995558832,18.2895741,102.7,102.66,14.68243677]
[1769995559020,18.2895741,102.7,102.65,14.68243677]
[1769995559218,18.2895741,102.7,102.64,37.64161846]
[1769995559419,10.15404372,102.71,102.67,9.7399435]
[1769995559626,0.4174703,102.71,102.67,9.7399435]
[1769995560317,0.4174703,102.71,102.69,14.68243677]
[1769995560617,3.60713733,102.69,102.64,14.68243677]
[1769995560821,18.2895741,102.69,102.65,9.74120473]
[1769995561019,18.2895741,102.66,102.63,9.74356989]
[1769995561225,14.68243677,102.65,102.62,9.74437814]
[1769995561425,34.49401918,102.71,102.58,9.74809399]
[1769995561426,18.2895741,102.63,102.58,9.74809399]
[1769995561630,14.68243677,102.64,102.6,9.74653498]
[1769995561937,18.2895741,102.61,102.57,9.74888902]
[1769995562126,18.2895741,102.61,102.56,18.22466704]
[1769995562314,14.68243677,102.6,102.56,18.22466704]
[1769995562518,14.68243677,102.6,102.56,9.75008418]
[1769995562732,3.60713733,102.61,102.55,9.7513408]
[1769995562733,14.68243677,102.59,102.55,9.7513408]
[1769995562919,3.60713733,102.61,102.55,9.7513408]
[1769995563220,14.68243677,102.57,102.53,24.43499459]
[1769995563539,14.68243677,102.56,102.52,9.75376954]
[1769995563715,4.27527085,102.62,102.55,14.68243677]
[1769995563916,561.66483402,102.83,102.61,14.68243677]
[1769995563917,15.09990707,102.71,102.61,14.68243677]
[1769995564116,0.4174703,102.71,102.68,14.68243677]
[1769995564312,0.4174703,102.71,102.69,14.68243677]
[1769995564518,0.4174703,102.71,102.68,14.68243677]
[1769995564714,0.1,102.73,102.7,14.68243677]
[1769995565126,3.74490874,102.71,102.63,27.08]
[1769995565332,18.42734551,102.71,102.66,14.68243677]
[1769995565534,3.74490874,102.71,102.67,24.42167904]
[1769995565842,28.16393455,102.71,102.66,24.42302286]
[1769995566138,3.74490874,102.71,102.67,24.42237787]
[1769995566641,3.84490874,102.73,102.69,14.68243677]
[1769995566839,3.74490874,102.75,102.71,14.68243677]
[1769995567044,3.74490874,102.75,102.67,34.08979987]
[1769995567242,3.74490874,102.75,102.69,14.68243677]
[1769995567243,18.42734551,102.74,102.69,14.68243677]
[1769995567422,3.74490874,102.74,102.71,14.68243677]
[1769995567631,18.42734551,102.73,102.69,9.73791089]
[1769995567834,3.74490874,102.72,102.68,24.42124438]
[1769995568141,18.42734551,102.71,102.67,9.7398366]
[1769995568336,3.74490874,102.71,102.68,24.42115368]
[1769995568542,3.74490874,102.71,102.68,14.68243677]
[1769995569042,3.74490874,102.72,102.68,14.68243677]
[1769995569345,18.42734551,102.72,102.67,14.68243677]
[1769995569540,18.42734551,102.7,102.65,14.68243677]
[1769995569727,3.74490874,102.71,102.67,24.42219784]
[1769995569928,3.74490874,102.71,102.67,14.68243677]
[1769995570229,3.74490874,102.73,102.69,14.68243677]
[1769995570928,18.42734551,102.73,102.68,34.0864704]
[1769995571123,3.74490874,102.71,102.67,14.68243677]
[1769995571529,3.74490874,102.69,102.63,5.36086188]
[1769995571734,3.74490874,102.69,102.65,14.68243677]
[1769995572137,3.74490874,102.71,102.67,14.68243677]
[1769995572329,3.74490874,102.71,102.68,14.68243677]
[1769995572843,3.74490874,102.73,102.7,14.68243677]
[1769995573043,28.15790343,102.77,102.72,14.68243677]
[1769995573224,3.74490874,102.77,102.74,14.68243677]
[1769995573631,3.74490874,102.77,102.73,14.68243677]
[1769995573935,3.74490874,102.77,102.74,14.68243677]
[1769995574133,3.74490874,102.75,102.71,14.68243677]
[1769995574339,3.74490874,102.75,102.72,24.41707079]
[1769995574541,0.1,102.79,102.74,14.68243677]
[1769995574845,3.84490874,102.79,102.76,14.68243677]
[1769995575046,1e-08,102.79,102.77,14.68243677]
[1769995575346,3.74490874,102.84,102.78,14.68243677]
[1769995575648,3.74490874,102.81,102.75,14.68243677]
[1769995575829,18.42734551,102.78,102.73,14.68243677]
[1769995576027,3.74490874,102.77,102.72,41.74243677]
[1769995576341,3.74490874,102.74,102.71,9.7360777]
[1769995576641,34.03710369,102.83,102.75,3.70523921]
[1769995576844,14.68243677,102.82,102.78,14.68243677]
[1769995577047,34.03710369,102.83,102.76,14.68243677]
[1769995577048,14.68243677,102.81,102.76,14.68243677]
[1769995577249,14.68243677,102.79,102.74,24.41551079]
[1769995577430,14.68243677,102.8,102.75,14.68243677]
[1769995577749,14.68243677,102.81,102.77,14.68243677]
[1769995578054,24.40917781,102.81,102.76,24.41384977]
[1769995578546,3.47505382,102.78,102.74,24.41513325]
[1769995578852,18.15749059,102.77,102.73,24.41634324]
[1769995579344,3.47505382,102.75,102.71,14.68243677]
[1769995579548,18.15749059,102.75,102.7,24.34128543]
[1769995579734,27.88988622,102.75,102.7,24.41953511]
[1769995580249,18.15749059,102.74,102.7,24.41953511]
[1769995580432,18.15749059,102.74,102.69,24.42009034]
[1769995580828,14.68243677,102.72,102.67,18.38767598]
[1769995581057,18.15749059,102.72,102.67,9.73955935]
[1769995581239,18.15749059,102.71,102.66,24.42295074]
[1769995581438,34.06329587,102.75,102.65,24.42387017]
[1769995581439,18.15749059,102.7,102.65,24.42387017]
[1769995581629,18.15749059,102.74,102.69,14.68243677]
[1769995581949,3.47505382,102.71,102.67,14.68243677]
[1769995582153,18.15749059,102.7,102.63,37.80832796]
[1769995582340,18.15749059,102.7,102.65,14.68243677]
[1769995582547,18.15749059,102.71,102.67,14.68243677]
[1769995582741,18.15749059,102.72,102.68,14.68243677]
[1769995582943,14.68243677,102.71,102.67,14.68243677]
[1769995583252,18.15749059,102.7,102.65,14.68243677]
[1769995583548,3.47505382,102.7,102.67,14.68243677]
[1769995583933,3.47505382,102.7,102.66,14.68243677]
[1769995584246,13.21219172,102.7,102.66,14.68243677]
[1769995584443,3.47505382,102.7,102.66,14.68243677]
[1769995584826,3.47505382,102.76,102.69,14.68243677]
[1769995585029,18.15749059,102.74,102.69,14.68243677]
[1769995585226,3.47505382,102.73,102.69,14.68243677]
[1769995585653,3.47505382,102.73,102.69,24.41991623]
[1769995585859,3.47505382,102.71,102.65,3.70523921]
[1769995586042,18.15749059,102.71,102.66,14.68243677]
[1769995586237,3.47505382,102.71,102.67,14.68243677]
[1769995586438,14.68243677,102.7,102.66,14.68243677]
[1769995586839,3.47505382,102.71,102.67,14.68243677]
[1769995587049,18.15749059,102.72,102.68,9.73855849]
[1769995587368,18.15749059,102.72,102.68,24.42099526]
[1769995587739,3.47505382,102.72,102.68,24.42099526]
[1769995587940,13.21030387,102.72,102.68,24.42099526]
[1769995588143,24.41523565,102.75,102.7,14.68243677]
[1769995588355,27.89028947,102.75,102.7,14.68243677]
[1769995588551,18.15749059,102.74,102.7,14.68243677]
[1769995588743,3.47505382,102.72,102.68,24.42099526]
[1769995588942,18.15749059,102.72,102.67,24.42192871]
[1769995589133,34.06331385,102.75,102.69,14.68243677]
[1769995589134,14.68243677,102.73,102.69,14.68243677]
[1769995589337,14.68243677,102.72,102.68,24.42139647]
[1769995589834,3.47505382,102.7,102.66,14.68243677]
[1769995590058,9.73540522,102.72,102.63,3.70523921]
[1769995590059,18.15749059,102.69,102.64,14.68243677]
[1769995590258,14.68243677,102.67,102.64,9.74215913]
[1769995590463,12.60032668,102.68,102.64,18.86743199]
[1769995590664,12.60032668,102.67,102.62,12.83051207]
[1769995590841,9.12527286,102.66,102.61,9.12527286]
[1769995591039,9.12527286,102.66,102.61,24.36353779]
[1769995591257,12.60032668,102.66,102.63,9.74321493]
[1769995591454,12.60032668,102.66,102.61,9.12527286]
[1769995591665,3.47505382,102.66,102.63,9.74314438]
[1769995591963,12.60032668,102.64,102.6,9.74631162]
[1769995592139,12.60032668,102.63,102.59,9.94675305]
[1769995592346,12.60032668,102.63,102.6,9.74623918]
[1769995592544,12.60032668,102.63,102.59,9.94720511]
[1769995593061,34.09401285,102.66,102.59,0.2]
[1769995593062,9.12527286,102.61,102.59,0.2]
[1769995593258,12.60032668,102.62,102.59,0.2]
[1769995593763,3.47505382,102.64,102.6,9.12527286]
[1769995593944,3.47505382,102.64,102.6,18.87186155]
[1769995594141,13.21862033,102.64,102.59,9.94711557]
[1769995594343,12.60032668,102.63,102.59,9.94711557]
[1769995594542,3.47505382,102.63,102.6,9.12527286]
[1769995594772,3.47505382,102.63,102.59,19.07238843]
[1769995594959,9.12527286,102.64,102.6,9.12527286]
[1769995595148,22.34224941,102.65,102.6,9.12527286]
[1769995595351,9.12527286,102.64,102.6,9.12527286]
[1769995595757,12.60032668,102.64,102.59,19.07238843]
[1769995595957,12.60032668,102.62,102.59,0.2]
[1769995596651,12.60032668,102.61,102.59,0.2]
[1769995596847,3.47505382,102.59,102.54,9.75215049]
[1769995597168,12.60032668,102.55,102.49,5.08351842]
[1769995597348,12.60032668,102.55,102.5,33.51453096]
[1769995597546,12.60032668,102.55,102.5,9.12527286]
[1769995597963,9.12527286,102.56,102.51,9.12527286]
[1769995598162,22.55780584,102.56,102.52,9.7541943]
[1769995598359,14.67490843,102.55,102.51,24.42968815]
[1769995598665,18.35695147,102.57,102.53,14.67490843]
[1769995598847,18.35695147,102.59,102.54,14.67490843]
[1769995599046,18.35695147,102.58,102.54,14.67490843]
[1769995599368,18.35695147,102.57,102.53,14.67490843]
[1769995599569,18.35695147,102.57,102.52,14.67490843]
[1769995599770,3.68204304,102.57,102.53,14.67490843]
[1769995599971,18.35695147,102.58,102.54,24.42682103]
[1769995600262,14.67490843,102.57,102.53,24.42775569]
[1769995600767,18.35695147,102.58,102.53,14.67490843]
[1769995600970,14.67490843,102.57,102.53,9.75295067]
[1769995601169,18.35695147,102.57,102.52,24.4288185]
[1769995601363,18.35695147,102.57,102.53,24.42761463]
[1769995601564,18.35695147,102.59,102.54,24.42693234]
[1769995601752,28.10354016,102.6,102.55,14.67490843]
[1769995601949,51.42311766,102.62,102.58,24.42339741]
[1769995601950,3.68204304,102.62,102.58,24.42339741]
[1769995602282,3.68204304,102.61,102.58,24.42339741]
[1769995602454,3.68204304,102.61,102.58,9.74848898]
[1769995602662,3.68204304,102.61,102.57,24.42400196]
[1769995602968,14.67490843,102.61,102.56,9.75021428]
[1769995603153,34.10648422,102.62,102.54,9.75204377]
[1769995603154,18.35695147,102.58,102.54,9.75204377]
[1769995604164,28.10574906,102.58,102.54,9.75204377]
[1769995605164,14.67490843,102.56,102.53,9.75299702]
[1769995605365,18.35695147,102.58,102.54,14.67490843]
[1769995605567,18.35695147,102.57,102.53,9.75299702]
[1769995605769,18.35695147,102.56,102.52,9.75375583]
[1769995605949,14.67490843,102.57,102.53,24.42775747]
[1769995606150,18.35695147,102.58,102.53,24.42775747]
[1769995606461,28.10547305,102.58,102.53,24.42775747]
[1769995606862,3.65854507,102.57,102.53,24.42775747]
[1769995608174,28.08108548,102.59,102.54,14.67490843]
[1769995609277,3.65854507,102.62,102.57,14.67490843]
[1769995609578,3.65854507,102.63,102.59,14.67490843]
[1769995609762,13.40244781,102.63,102.59,14.67490843]
[1769995610266,13.40266528,102.63,102.59,14.67490843]
[1769995610467,13.40266528,102.63,102.59,14.65113776]
[1769995610677,28.05380304,102.63,102.59,14.65113776]
[1769995610860,14.65113776,102.62,102.58,14.65113776]
[1769995611175,28.05380304,102.63,102.59,14.65113776]
[1769995611580,28.05380304,102.63,102.58,24.39872127]
[1769995611975,18.30968283,102.62,102.58,24.39872127]
[1769995612171,3.65854507,102.62,102.58,24.39872127]
[1769995612477,28.05380304,102.63,102.58,24.39922867]
[1769995612882,3.65854507,102.62,102.58,24.39922867]
[1769995613075,18.30968283,102.62,102.58,9.74829993]
[1769995613274,18.30968283,102.61,102.57,24.40057716]
[1769995613465,3.65854507,102.63,102.59,14.65113776]
[1769995613664,28.05200968,102.65,102.61,14.65113776]
[1769995613979,28.62706962,102.67,102.64,14.65113776]
[1769995613980,3.65854507,102.67,102.64,14.65113776]
[1769995614479,13.39867927,102.67,102.63,14.65113776]
[1769995614667,3.65854507,102.67,102.64,14.65113776]
[1769995615381,13.39849544,102.67,102.63,14.65113776]
[1769995615869,3.65854507,102.66,102.62,14.65113776]
[1769995616176,3.65854507,102.66,102.63,14.65113776]
[1769995616377,1.31671615,102.67,102.57,43.39165338]
[1769995616559,14.65113776,102.65,102.6,14.65113776]
[1769995616760,14.65113776,102.65,102.61,14.65113776]
[1769995616973,41.73113776,102.66,102.62,14.65113776]
[1769995617178,14.65113776,102.67,102.62,14.65113776]
[1769995617375,24.39150123,102.67,102.62,14.65113776]
[1769995617570,14.65113776,102.66,102.61,24.39620001]
[1769995617778,14.65113776,102.66,102.62,14.65113776]
[1769995618176,14.65113776,102.66,102.61,24.39636337]
[1769995618761,18.30968283,102.66,102.61,24.39636337]
[1769995618980,18.30968283,102.65,102.61,9.74522561]
[1769995619386,18.30968283,102.65,102.61,14.65113776]
[1769995619689,3.65854507,102.63,102.58,24.37035551]
[1769995619986,18.30968283,102.62,102.58,9.74788561]
[1769995620185,18.30968283,102.63,102.59,9.7471114]
[1769995620384,9.13540072,102.62,102.58,18.88339073]
[1769995620863,3.65854507,102.66,102.61,9.13540072]
[1769995621180,3.65854507,102.66,102.63,9.13540072]
[1769995621382,13.39962091,102.66,102.62,9.13540072]
[1769995621759,3.65854507,102.65,102.61,9.13540072]
[1769995622183,3.65854507,102.65,102.62,9.13540072]
[1769995622480,3.65854507,102.65,102.61,9.13540072]
[1769995622883,12.79394579,102.62,102.55,2.87802467]
[1769995623182,34.09315796,102.66,102.55,36.39020524]
[1769995623183,9.13540072,102.6,102.55,36.39020524]
[1769995623375,9.13540072,102.57,102.54,9.75168978]
[1769995623683,9.13540072,102.57,102.53,24.38131628]
[1769995623684,9.13540072,102.55,102.53,9.75317398]
[1769995623878,12.79394579,102.57,102.53,9.75317398]
[1769995624183,9.13540072,102.56,102.52,18.88920343]
[1769995624381,12.79394579,102.55,102.51,9.13540072]
[1769995624583,9.13540072,102.56,102.52,9.13540072]
[1769995624883,12.79394579,102.56,102.52,9.75377843]
[1769995625182,9.13540072,102.56,102.53,9.75277263]
[1769995625370,12.79394579,102.56,102.52,9.75373221]
[1769995625577,12.79394579,102.56,102.52,9.75417411]
[1769995625770,12.79394579,102.56,102.52,18.88957483]
[1769995625771,3.65854507,102.56,102.52,18.88957483]
[1769995625985,3.65854507,102.6,102.55,9.13540072]
[1769995626177,12.79394579,102.59,102.55,9.13540072]
[1769995626377,3.65854507,102.61,102.57,9.13540072]
[1769995626576,12.79394579,102.61,102.56,9.13540072]
[1769995626785,3.65854507,102.6,102.56,9.13540072]
[1769995627265,12.79394579,102.6,102.55,9.13540072]
[1769995627471,12.79394579,102.6,102.55,18.88600645]
[1769995627472,9.13540072,102.59,102.55,18.88600645]
[1769995627665,12.73123045,102.59,102.55,9.75060573]
[1769995628390,18.26096718,102.59,102.55,9.75060573]
[1769995628690,9.74690999,102.6,102.56,14.66513745]
[1769995629390,13.34273972,102.6,102.56,14.66513745]
[1769995629580,18.26096718,102.59,102.54,24.41742338]
[1769995629785,3.59582973,102.57,102.53,24.41783827]
[1769995629968,14.66513745,102.58,102.54,9.75223464]
[1769995630290,27.08,102.59,102.55,14.66513745]
[1769995630495,27.08,102.59,102.56,14.66513745]
[1769995630670,27.08,102.59,102.56,24.41502792]
[1769995630871,30.67582973,102.59,102.55,24.41604984]
[1769995631283,28.00862518,102.59,102.54,14.66513745]
[1769995631678,18.26096718,102.58,102.53,24.38218191]
[1769995631987,18.26096718,102.58,102.54,9.75229048]
[1769995632175,18.26096718,102.58,102.54,24.41679565]
[1769995632374,14.66513745,102.57,102.54,9.7516582]
[1769995632577,18.26096718,102.58,102.54,24.41679565]
[1769995632782,28.00980097,102.58,102.54,24.41679565]
[1769995633181,28.00980097,102.58,102.54,14.66513745]
[1769995633389,28.00980097,102.58,102.53,24.41785616]
[1769995633576,30.67582973,102.6,102.54,12.63327341]
[1769995633780,30.67582973,102.6,102.57,14.66513745]
[1769995633781,3.59582973,102.6,102.57,14.66513745]
[1769995634493,3.59582973,102.6,102.56,14.66513745]
[1769995634794,3.59582973,102.6,102.57,14.66513745]
[1769995634992,3.59582973,102.6,102.57,24.41449873]
[1769995635496,18.26096718,102.64,102.59,14.66513745]
[1769995635796,55.08233465,102.66,102.62,14.66513745]
[1769995635999,40.4171972,102.66,102.62,14.66513745]
[1769995636191,55.08233465,102.66,102.62,14.66513745]
[1769995636380,28.00233465,102.66,102.62,14.66513745]
[1769995636576,3.59582973,102.66,102.62,14.66513745]
[1769995636778,3.59582973,102.66,102.63,14.66513745]
[1769995637398,3.59582973,102.65,102.61,9.74557541]
[1769995637579,3.59582973,102.63,102.6,9.74601295]
[1769995637897,3.59582973,102.63,102.59,39.03317532]
[1769995637898,18.26096718,102.62,102.58,24.41323626]
[1769995638593,3.59582973,102.62,102.58,48.78445872]
[1769995638797,41.74513745,102.65,102.61,14.66513745]
[1769995639096,27.08,102.65,102.62,14.66513745]
[1769995639296,27.08,102.65,102.63,24.40887709]
[1769995639484,9.74674196,102.68,102.64,14.66513745]
[1769995639676,18.26096718,102.68,102.63,34.10308875]
[1769995639881,18.26096718,102.66,102.63,9.74373964]
[1769995640080,3.59582973,102.65,102.62,9.7442461]
[1769995640394,14.66513745,102.64,102.6,24.41123229]
[1769995640597,18.26096718,102.67,102.62,24.40967752]
[1769995640790,3.59582973,102.66,102.62,24.40967752]
[1769995640987,3.59582973,102.65,102.6,2.88235361]
[1769995641198,3.59582973,102.65,102.61,24.41033465]